Cogmind - Beta 17 @@@ ROGUE MODE // 2026.07.07 @ 00:15:09 Player: ChCbias Result: Destroyed by WA-AYM(j) with Overtuned Pulse Rifle Performance ------------- Evolutions (0) 0 Regions Visited (3) 600 Robots Destroyed (11) 55 Value Destroyed (440) 440 Prototype IDs (8) 160 Alien Tech Used (0) 0 Bonus (800) 800 TOTAL SCORE: 2055 Bonus ------- Registered with UFD 300 Met Optimus in HQ 500 Cogmind --------- Core Integrity 0/250 Matter 300/300 Energy 240/240 System Corruption 3% Temperature Cool (12) Movement Treading (160) Location -8/Scraptown Parts ------- > --- POWER (1) -------- Nuclear Core > --- PROPULSION (2) --- Medium Treads Overtuned Titanium Leg > --- UTILITY (2) ------ Small Storage Unit Advanced Signal Interpreter > --- WEAPON (2) ------- Heavy Battle Rifle Improved Grenade Launcher > --- INVENTORY (8) ---- Improved Deuterium Engine Improved Heat Sink Tech Extrapolator Heavy Riot Gun Subdweller Beam Cannon Plasma Cannon Peak State ------------ > --- POWER ------------ Improved Deuterium Engine > --- PROPULSION ------- Advanced Treads Medium Treads > --- UTILITY ---------- Small Storage Unit Advanced Signal Interpreter > --- WEAPON ----------- Subdweller Beam Cannon Barrage Gun > --- INVENTORY -------- Nuclear Core Improved Deuterium Engine Improved Heat Sink Tech Extrapolator Heavy Riot Gun Plasma Cannon Heavy Battle Rifle Improved Grenade Launcher [Rating: 25] Favorites ----------- Power Subdweller Power Source Engine Subdweller Power Source Power Core Nuclear Core Propulsion Light Treads Treads Light Treads Leg Overtuned Titanium Leg Utility Small Storage Unit Device Subdweller Optics Storage Small Storage Unit Processor Advanced Signal Interpreter Weapon Subdweller Beam Cannon Energy Gun Medium Laser Energy Cannon Subdweller Beam Cannon Ballistic Gun Barrage Gun Launcher Improved Grenade Launcher Build | -11 -10 -10 -8 ------- Run | Yrd Mat Sub Scr Slots Evolved . | . . . . Power . | . . . . Propulsion . | . . . . Utility . | . . . . Weapon . | . . . . Parts Attached 26 | 6 . 11 9 Power 5 | 1 . 2 2 Engine 4 | 1 . 2 1 Core 1 | . . . 1 Reactor . | . . . . Propulsion 8 | 2 . 2 4 Treads 7 | 2 . 2 3 Leg 1 | . . . 1 Wheel . | . . . . Hover . | . . . . Flight . | . . . . Utility 4 | 1 . 2 1 Device 2 | . . 2 . Storage 1 | 1 . . . Processor 1 | . . . 1 Hackware . | . . . . Protection . | . . . . Artifact . | . . . . Weapon 9 | 2 . 5 2 Energy Gun 2 | 1 . 1 . Energy Cannon 1 | . . 1 . Ballistic Gun 5 | 1 . 3 1 Ballistic Cannon . | . . . . Launcher 1 | . . . 1 Special Weapon . | . . . . Impact Weapon . | . . . . Slashing Weapon . | . . . . Piercing Weapon . | . . . . Special Melee Weapon . | . . . . Unidentified Prototypes . | . . . . Corrupted Parts 1 | . . . 1 System Corruption 2 | . . . 2 Parts Lost 8 | . . 5 3 Power 2 | . . 1 1 Propulsion 4 | . . 3 1 Utility . | . . . . Weapon 2 | . . 1 1 Highest Loss Streak 3 | . . 2 3 To Critical Strikes 1 | . . 1 . Average Backups 7 | 3 7 7 7 Power . | . 1 . . Propulsion 2 | 2 4 2 1 Utility 1 | . 1 2 2 Weapon 3 | . 1 2 3 Tool/Special . | . . . . Unused Backups 12 | . . 2 10 Power 1 | . . . 1 Propulsion 4 | . . 2 2 Utility 3 | . . . 3 Weapon 4 | . . . 4 Tool/Special . | . . . . Average Slot Usage (%) 92 | . 85 91 93 Engine 10 | . 14 13 9 Treads 25 | . 28 24 26 Device 4 | . . 9 1 Storage 14 | . 14 14 14 Processor 7 | . . . 12 Energy Gun 2 | . 14 4 . Energy Cannon 10 | . . 6 13 Ballistic Gun 14 | . 14 16 14 Peak Build Rating 25 | 6 7 12 25 Average Rating 16 | 4 6 10 20 On Entrance 6 | . 6 7 12 Avg Prop Armor Cover (%) 10 | . . . 10 Naked Turns . | . . . . Heaviest Build 26 | 12 12 23 26 Greatest Support 50 | 40 40 40 50 Greatest Overweight (x) 5 | . . 5 1 Average Overweight (x) . | . . . . Largest Inventory Capacity 8 | 8 8 8 8 Average Capacity 7 | 6 8 8 8 Most Carried 8 | 6 8 8 8 Average Carried 7 | 3 7 7 7 Final Capacity 8 | 8 8 8 8 Final Carried 8 | 6 8 8 6 Class Distribution -------------------- 100% | Mutant Dominant Class ---------------- Mutant | -10/Materials Mutant | -10/Subcaves Mutant | -8/Scraptown Resources | -11 -10 -10 -8 ----------- Run | Yrd Mat Sub Scr Matter Collected 678 | 230 66 240 142 Remotely . | . . . . Salvage Created 508 | . 129 239 140 Parts 23 | . 4 13 6 Haulers Intercepted . | . . . . Recyclers Shooed . | . . . . Parts Field Recycled . | . . . . Retrieved Matter . | . . . . Parts Self-Destructed 8 | . . 4 4 Prevented . | . . . . Parts Restored . | . . . . Kills | -11 -10 -10 -8 ------- Run | Yrd Mat Sub Scr Combat Hostiles Destroyed 11 | . 3 6 2 Guns 9 | . 3 4 2 Cannons 2 | . . 2 . Classes Destroyed 3 | . 1 1 1 Grunt 3 | . 3 . . Subdweller 6 | . . 6 . Scrapper 2 | . . . 2 Best Kill Streak 3 | . 3 2 2 Combat Bots Only 3 | . 3 2 2 Max Kills in Single Turn 1 | . 1 1 1 Gunslinging . | . . . . Exploded . | . . . . Melee . | . . . . Uniques/NPCs Destroyed . | . . . . Combat | -11 -10 -10 -8 -------- Run | Yrd Mat Sub Scr Hostile Shots Fired 136 | . 21 60 55 Missed 33 | . 8 12 13 Hits 103 | . 13 48 42 Projectile 103 | . 13 48 42 Critical Strikes 6 | . . 2 4 Damage Taken 1947 | . 152 1022 773 Core 270 | . 32 106 132 Absorbed by Shields . | . . . . Core Remaining (%) 100 | 100 . . . Volleys Fired 85 | . 12 62 11 Largest 2 | . 2 2 2 Hottest 108 | . 70 108 108 Shots Fired 144 | . 24 101 19 Gun 110 | . 24 74 12 Cannon 34 | . . 27 7 Launcher . | . . . . Special . | . . . . Kinetic 76 | . 12 52 12 Thermal 68 | . 12 49 7 Explosive . | . . . . Electromagnetic . | . . . . Robot Hit Streak 14 | . 5 14 3 Robot Miss Streak 3 | . 3 2 2 Penetration Max . | . . . . Secondary Targets 2 | . 2 . . Max Gunslinging Chain 1 | . 1 . . Shots Hit Robots 80 | . 12 57 11 Core Hits 28 | . 6 17 5 Critical Kills . | . . . . Critical Parts Destroyed 1 | . . . 1 Critical Strikes 3 | . 1 1 1 Burn 2 | . 1 1 . Destroy 1 | . . . 1 Melee Attacks . | . . . . Impact . | . . . . Slashing . | . . . . Piercing . | . . . . Sneak Attacks . | . . . . Combat Hostiles . | . . . . Follow-up Attacks . | . . . . Damage Inflicted 1258 | . 152 901 205 Guns 923 | . 152 592 179 Cannons 335 | . . 309 26 Explosions . | . . . . Melee . | . . . . Ramming . | . . . . Kinetic 613 | . 63 371 179 Thermal 645 | . 89 530 26 Explosive . | . . . . Electromagnetic . | . . . . Impact . | . . . . Slashing . | . . . . Piercing . | . . . . Highest Corruption 3 | . . . 3 Average Corruption 2 | . . . 2 Corruption Purged . | . . . . Corruption Blocked . | . . . . Effects 1 | . . . 1 Data Loss (major) 1 | . . . 1 Overload Shots . | . . . . Overflow Damage . | . . . . Projectiles . | . . . . Explosions . | . . . . Melee . | . . . . Knockbacks . | . . . . Impact . | . . . . Kinetic . | . . . . Secondary . | . . . . Self-Inflicted Damage . | . . . . Shots . | . . . . Rammed . | . . . . Targets Rammed . | . . . . Kicked . | . . . . Crushed . | . . . . Highest Temperature 332 | . 177 56 332 Average Temperature 99 | . 89 13 126 Received Heat Transfer 640 | . 84 96 460 Effects 1 | . . . 1 Interference 1 | . . . 1 Siege Activations . | . . . . Martial Activations . | . . . . Shielding Activations . | . . . . Robots Disrupted . | . . . . Combat Hostiles . | . . . . Robots Corrupted . | . . . . Combat Hostiles . | . . . . Parts Fried . | . . . . Impact Corruptions . | . . . . Robots Melted . | . . . . Combat Hostiles . | . . . . Parts Melted 8 | . 5 2 1 Heat Transferred 1236 | . 333 878 25 Parts Sabotaged . | . . . . Parts Stolen . | . . . . Parts Stripped . | . . . . Power Chain Reactions . | . . . . Alert | -11 -10 -10 -8 ------- Run | Yrd Mat Sub Scr Maximum Alert Level . | . . . . Low Security (%) 100 | 100 100 . . Level 1 . | . . . . Level 2 . | . . . . Level 3 . | . . . . Level 4 . | . . . . Level 5 . | . . . . High Security . | . . . . Max Security . | . . . . Peak Influence 60 | . 60 . . Initial . | . . . . Average 11 | . 14 . . Influence Increases 75 | . 75 . . Destroy 0b10 Robot/C 60 | . 60 . . Destroy Leader 10 | . 10 . . Successful Hack 5 | . 5 . . Influence Decreases 75 | . 45 30 . Entered New Map 15 | . . 15 . Time Decay 60 | . 45 15 . Squads Dispatched 2 | . 2 . . Investigation 1 | . 1 . . Extermination . | . . . . Reinforcement 1 | . 1 . . Assault . | . . . . Garrison . | . . . . Intercept . | . . . . Searches Triggered . | . . . . Construction Impeded . | . . . . Haulers Reinforced . | . . . . Active Scanning Responses . | . . . . Cargo Convoy Interrupts . | . . . . Stealth | -11 -10 -10 -8 --------- Run | Yrd Mat Sub Scr Distress Signals . | . . . . Communications Jammed . | . . . . Distress Signals . | . . . . Times Spotted 47 | . 7 10 30 Peak Tracking Total 7 | . 4 2 7 Tactical Retreats 2 | . . 1 1 Traps | -11 -10 -10 -8 ------- Run | Yrd Mat Sub Scr Traps Triggered . | . . . . Indirectly . | . . . . Trap Hack Attempts . | . . . . Triggered . | . . . . Disarmed . | . . . . Reprogrammed . | . . . . Reused . | . . . . Traps Extracted . | . . . . Installed . | . . . . Triggered . | . . . . Machines | -11 -10 -10 -8 ---------- Run | Yrd Mat Sub Scr Machines Disabled 1 | . . . 1 Max in Single Turn 1 | . . . 1 Machines Repaired . | . . . . Machines Dismantled . | . . . . Machines Sabotaged . | . . . . Overloaded Fab Kills . | . . . . Hacking | -11 -10 -10 -8 --------- Run | Yrd Mat Sub Scr Machines Accessed 8 | . 1 1 6 Terminals 1 | . 1 . . Fabricators . | . . . . Repair Stations . | . . . . Recycling Units . | . . . . Scanalyzers . | . . . . Garrison Access . | . . . . Total Hacks 53 | . 3 4 46 Successful 51 | . 1 4 46 Failed 2 | . 2 . . Catastrophic . | . . . . Database Lockouts . | . . . . Manual . | . . . . Terminals 3 | . 3 . . Fabricators . | . . . . Repair Stations . | . . . . Recycling Units . | . . . . Scanalyzers . | . . . . Garrison Access . | . . . . Terminal Hacks 51 | . 1 4 46 Record 49 | . . 4 45 Robot Analysis 1 | . 1 . . Proto ID Catalog 1 | . . . 1 Fabricator Hacks . | . . . . Repair Station Hacks . | . . . . Recycling Unit Hacks . | . . . . Scanalyzer . | . . . . Garrison Access Hacks . | . . . . Unauthorized Hacks . | . . . . Terminals . | . . . . Fabricators . | . . . . Repair Stations . | . . . . Recycling Units . | . . . . Scanalyzers . | . . . . Garrison Access . | . . . . Data Cores Recovered . | . . . . Used . | . . . . Hacking Detections 1 | . 1 . . Full Trace Events . | . . . . Feedback Events . | . . . . Feedback Blocked . | . . . . Robot Schematics Acquired . | . . . . Robots Built . | . . . . Authchips . | . . . . Time . | . . . . Total Robot Build Rating . | . . . . Part Schematics Acquired . | . . . . Parts Built . | . . . . Authchips . | . . . . Time . | . . . . Total Part Build Rating . | . . . . Part Studies Acquired . | . . . . Parts Repaired . | . . . . Time . | . . . . Parts Recycled . | . . . . Recycled Matter . | . . . . Retrieved Matter . | . . . . Retrieved Components . | . . . . Parts Scanalyzed . | . . . . Part Schematics Acquired . | . . . . Parts Damaged . | . . . . Bothacking | -11 -10 -10 -8 ------------ Run | Yrd Mat Sub Scr Used RIF Installer . | . . . . Robots Hacked . | . . . . Non-combat . | . . . . Combat . | . . . . Robot Hacks Applied . | . . . . Relay Couplers Released . | . . . . Fabnet Peak Effective % . | . . . . Robots Rewired . | . . . . Allies Hacked . | . . . . Hacks Repelled . | . . . . Allies | -11 -10 -10 -8 -------- Run | Yrd Mat Sub Scr Total Allies . | . . . . Largest Group . | . . . . Highest-Rated Group . | . . . . Highest-Rated Ally . | . . . . Total Orders . | . . . . Ally Attacks . | . . . . Total Damage . | . . . . Kills . | . . . . Allies Corrupted . | . . . . Allies Melted 3 | . . . 3 Intel | -11 -10 -10 -8 ------- Run | Yrd Mat Sub Scr Active Infowar (turns) 1224 | . . 764 460 Optics 1224 | . . 764 460 Robot Analysis Total 1 | . 1 . . Derelict Logs Recovered 3 | . . 1 2 Drone Launches . | . . . . Drone Recoveries . | . . . . Exploration | -11 -10 -10 -8 ------------- Run | Yrd Mat Sub Scr Turns Passed 5310 | 74 266 1581 3389 Spaces Moved 3122 | 39 143 791 2149 Core 3 | 2 . 1 . Treads 3116 | 37 143 790 2146 Legs 3 | . . . 3 Wheels . | . . . . Hover . | . . . . Flight . | . . . . Fastest Speed 50 | 50 160 160 150 Average Speed 160 | 154 160 175 154 Slowest Speed 300 | 160 160 300 240 Overloaded Moves . | . . . . Propulsion Burnouts . | . . . . Robots Hopped . | . . . . Potential Cave-ins . | . . . . Cave-ins Triggered . | . . . . Exploration Rate (%) 48 | 3 45 48 96 Regions Visited 3 Branch Regions 2 Pre-discovered Areas 1 | . . 1 . Known Exits Taken . | . . . . Unknown Exits Taken 3 | 1 1 1 . Scrap Searched 5 | . . . 5 Spaces Dug . | . . . . Terrain Destroyed 2 | . . . 2 Melee . | . . . . Projectile 2 | . . . 2 AOE . | . . . . Terrain Rammed . | . . . . Walls Destroyed . | . . . . Machines Disabled . | . . . . Actions | -11 -10 -10 -8 --------- Run | Yrd Mat Sub Scr Total 3277 | 50 156 881 2190 Wait 7 | . . 6 1 Move 3119 | 38 142 790 2149 Hop . | . . . . Pick Up 19 | 6 2 5 6 Fast Attach 20 | 6 . 6 8 Attach 4 | . . 2 2 Detach . | . . . . Swap 4 | . . 3 1 Drop 19 | . . 7 12 Fire 85 | . 12 62 11 Melee . | . . . . Ram . | . . . . Kick . | . . . . Crush . | . . . . Escape Stasis . | . . . . Rewire . | . . . . Trap . | . . . . Miscellaneous . | . . . . Route ------- -11/Scrapyard -10/Materials (discovered 3 exits: [*Mat x2] / *Sub) -10/Subcaves (discovered 2 exits: [*Mat] / *Scr) -8/Scraptown (discovered 2 exits: *Fac x2) History --------- Turn | Location | Event 46 | -11/Scrapyard | Discovered new exit (range 16) 75 | -11/Scrapyard | Entered Materials 76 | -10/Materials | Met a group of wandering Federalists 160 | -10/Materials | Discovered new exit (range 15) 214 | -10/Materials | Lost 4 allies 298 | -10/Materials | Discovered new exit (range 9) 304 | -10/Materials | Build established: Mutant 323 | -10/Materials | Discovered new exit (range 11) 341 | -10/Materials | Entered Subcaves 342 | -10/Subcaves | Approached by a straggling Scientist 345 | -10/Subcaves | Learned location of 1 exit from Materials 393 | -10/Subcaves | Visited Clippyterm 397 | -10/Subcaves | Learned 40 Factory zone layouts 614 | -10/Subcaves | Shifting Twisted Machinery released Multitool 620 | -10/Subcaves | A swath of the cavern ceiling suddenly collapsed 830 | -10/Subcaves | Ambushed by angry Subdweller bent on revenge 989 | -10/Subcaves | A swath of the cavern ceiling suddenly collapsed 1020 | -10/Subcaves | Shifting Twisted Machinery released Mak. Light Armor Plating 1024 | -10/Subcaves | Learned location of Zion (-7) 1024 | -10/Subcaves | Met a Zionite searching for "candidates" 1145 | -10/Subcaves | Shifting Twisted Machinery released Battle Cannon 1520 | -10/Subcaves | Core integrity fell below 50% 1590 | -10/Subcaves | Shifting Twisted Machinery released Hvy. Riot Gun 1621 | -10/Subcaves | Shifting Twisted Machinery released Mak. Light Armor Plating 1677 | -10/Subcaves | Discovered new exit (range 15) 1922 | -10/Subcaves | Entered Scraptown 2466 | -8/Scraptown | Visited TADAMA 2514 | -8/Scraptown | Visited CR-KLE's Repair Center 2553 | -8/Scraptown | Visited The Evicted 2605 | -8/Scraptown | Visited Cave Peace 3254 | -8/Scraptown | Scanned Subdweller tech in exchange for log data 3258 | -8/Scraptown | Learned Research terminal intel 3260 | -8/Scraptown | Learned 12 Factory zone layouts 3283 | -8/Scraptown | Discovered new exit (range 5) 3292 | -8/Scraptown | Identified exit to Factory 3444 | -8/Scraptown | Visited Comm Corps 3494 | -8/Scraptown | Visited Observation Area 3565 | -8/Scraptown | Visited Red Mages 3644 | -8/Scraptown | Visited UFD Registry 3644 | -8/Scraptown | Registered with UFD as "Monoframe" 3720 | -8/Scraptown | Visited LU-1G1's Boring Crew 3956 | -8/Scraptown | Visited Abandonware Association 3996 | -8/Scraptown | Learned abandonware demo "REVENGE.EXE" 3996 | -8/Scraptown | Learned abandonware demo "POISON.EXE" 4134 | -8/Scraptown | Discovered exit to Factory (range 3) 4210 | -8/Scraptown | Visited Curators Association 4262 | -8/Scraptown | Visited Scrapoid Research Area 4310 | -8/Scraptown | Visited Supply Room 4333 | -8/Scraptown | Visited Junk Repository 4601 | -8/Scraptown | Visited DA-N13 Charitable Foundation 4618 | -8/Scraptown | Found DCF Scrap (27 items) 4755 | -8/Scraptown | Visited Science Guys 4994 | -8/Scraptown | Met Optimus 4994 | -8/Scraptown | Accepted into 0bPrime 5123 | -8/Scraptown | Civil war broke out across Scraptown 5188 | -8/Scraptown | Lost 6 allies 5280 | -8/Scraptown | Core integrity fell below 20% 5308 | -8/Scraptown | Lost 3 parts (1p1n1w) 5311 | -8/Scraptown | Destroyed by WA-AYM(j) with Overtuned Pulse Rifle Last Messages --------------- 05284_ Slug penetrates ZT-VMG(j). 05284_ ZT-VMG(j) destroyed. 05285_ Acquired 20 matter. 05286_ Slug penetrates Wall. 05288_ 7D-0FQ(j) destroyed. 05288_ Ovr. Titanium Leg suddenly begins malfunctioning. 05289_ Targeting Computer fries itself beyond repair. 05292_ Penetrated by Bolt. 05295_ Slug penetrates R0-I3O(g). 05298_ Penetrated by Bolt. 05301_ Slug penetrates R0-I3O(g). 05304_ Bolt penetrates Reinforced Barrier. 05307_ Penetrated by Bolt. 05307_ Critical hit (Burn: +50). 05307_ Slug penetrates 7L-291(x). 05307_ 7L-291(x) destroyed. 05311_ System corrupted: Substantial component data lost. Map ----- +----------------------------------------------------+ | # ## #???????####### ###??? | | # ########## ##### [#"#!#####???????##### ###### | | =*% %%! #???????#"""" """""" | | !%!*! [= #???????#" | | [!* #???????#" | | !! #???????#" | | !%[ !#???????#" | | #################*!=*![ [%#???#####" | | #???????????????# =!%= [#???#"""" """"" | | #??############## %*!%/ #???#"""" """"" | | #??#"""""""""""""*/% #???#"""" ""### | | #??#"""" """ " "%=[ #???#"""" ""# | | #??#""" & " #!/ j !!#???#"""" ""# | | #??####"!%[ # =%###?#"""" ""# | | #??#! #" ="" % # =!"#"#"""" ""# | | #??#!!#" "" !== # """"#"""" ""# | | #??# !#" """[%! ; !! ""#######" "" | | #??#!!#" = ; [% !###?????#"!%[ "" | | #??#!!#"" " "%=;!= =3*=%#########" ! ""# | | #??#!!+ """!*%![ /% =%!=[%!= ""# | | #??####""" """*=%! = = [*[ ""# | | #????"""""""" ;!! !%= ""# | | #???############;![ ! ""# | | ################;%== =%! %[ ""### | | !%=!% =%!!!%= """"" | | /=%!* @==%*!%[!!= j "" | | [ ! !![==!%[%= !%= | | =%! =[[ ! = ! *=! | | % !%! =%!/= [ | | =[!! !%*[ #""""#" !%*! | | =[!=*%*= !%= #????#" %! % | | *%= [!%[ !%! #????#""" " =""" | | ######## ###;#;;%=!;;###### ####????####### #### | | # # ; !! #?# #????????# | | # # ; #?#*[ #????????#" | | # ### #?#%! #????????#&" "" " | | #""""" """"#?# #?#== #????????# " "" " | | #""""" """""#?# """" #?# *!#????????# " | | #""""" """""#?# """"" #?# =%#????????#"" """ | | #""""" """""#?# """"" #?#!%!#????????#"""" !"" | | ?"""""""""""#?# #?# =%#????????#""!" =% | | ?"""""""""""??# #?#=%%#????????#"""" "" | | ?"""""""""""??###########?#[!/!????????#""" X """" | | ??#########???????????????#!%*#????????#"""""""""" | | ???????????????############=!*#????????########### | | ???????????????#""""""""""" #????############### | | ???????????????#""""" """"" #????# ##""" | | ?????????#######"""" " "" #????# """"""" ## "" | | ?????????# #????# """"""" | | #####?#### #####"" "" "" " #????# """"""" | +----------------------------------------------------+ Best States ------------- Heat Dissipation 25 Energy Generation 16 Energy Capacity 290 Matter Stores 300 Matter Capacity 300 Sight Range 21 Terrain Scan Density 10 Evasion (%) 40 Recoil Reduction 2 Item Schematics ----------------- None Robot Schematics ------------------ None Fabricated ------------ Nothing Repaired ---------- Nothing Studied --------- None Alien Tech Used ----------------- None Achievements -------------- None Challenges ------------ None Game ------ Seed GravitonFissionPropulsion Manual? 0 Play Time 00:57:06 Cumulative 30.0 hours Start 2026.07.06 @ 22:45:30 End 2026.07.07 @ 00:15:09 Sessions 1 Manual Loads 0 Difficulty Rogue Special Mode None Game No. 24 Rogue 24 Adventurer 0 Explorer 0 Win Type - Total 0 Types 0/0/0/0/0/0/0/0/0/0 Lore% 24 Gallery% 23 Achievement% 24 Wizard Run 0 Options --------- Layout 1 ASCII 0 Keyboard 0 Movement Mouse Keybinds 0 Fullscreen 1 Font 24/Smallcaps Map View 50x35 Zoom Use 0% Tactical HUD 1 Map Filters NONE Filters NONE Steam 1 RUN: 011651b1-f32a-4c9a-bce0-54fd0330f254